fUST/lending_fUST_20260604
["ID","MTS","AMOUNT","RATE_DAILY","PERIOD"]
[423984668,1780535449000,-636.04,0.00016986,2]
[423984678,1780535449000,-500.0,0.00016986,2]
[423984671,1780535449000,-500.0,0.00016986,2]
[423984682,1780535449000,-2158.51,0.00016986,2]
[423984672,1780535449000,-541.8,0.00016986,2]
[423984670,1780535449000,-745.9,0.00016986,2]
[423984680,1780535449000,-687.1,0.00016986,2]
[423984673,1780535449000,-2470.54,0.00016986,2]
[423984675,1780535449000,-1627.14,0.00016986,2]
[423984674,1780535449000,-555.17,0.00016986,2]
[423984679,1780535449000,-11303.85,0.00016986,2]
[423984692,1780535449000,-374.77836776,0.00017154,2]
[423984676,1780535449000,-500.0,0.00016986,2]
[423984691,1780535449000,-228.58621907,0.00017154,2]
[423984702,1780535449000,-926.41,0.0001726,2]
[423984693,1780535449000,-4361.814383,0.000172,2]
[423984690,1780535449000,-1130.97,0.00016986,2]
[423984683,1780535449000,-500.0,0.00016986,2]
[423984688,1780535449000,-564.35,0.00016986,2]
[423984685,1780535449000,-835.73,0.00016986,2]
[423984689,1780535449000,-680.27,0.00016986,2]
[423984684,1780535449000,-778.38,0.00016986,2]
[423984686,1780535449000,-500.0,0.00016986,2]
[423984687,1780535449000,-519.26,0.00016986,2]
[423984694,1780535449000,-3032.9677753,0.00017235,2]
[423984695,1780535449000,-500.0,0.0001726,2]
[423984704,1780535449000,-2676.5,0.0001726,2]
[423984703,1780535449000,-500.0,0.0001726,2]
[423984677,1780535449000,-1169.27,0.00016986,2]
[423984681,1780535449000,-500.0,0.00016986,2]
[423984669,1780535449000,-710.59,0.00016986,2]
[423984649,1780535449000,-519.26,0.00016712,2]
[423984667,1780535449000,-500.0,0.00016986,2]
[423984639,1780535449000,-1169.27,0.00016712,2]
[423984640,1780535449000,-500.0,0.00016712,2]
[423984637,1780535449000,-500.0,0.00016712,2]
[423984638,1780535449000,-262.69015792,0.00016712,2]
[423984641,1780535449000,-11303.85,0.00016712,2]
[423984705,1780535449000,-1088.07,0.0001726,2]
[423984650,1780535449000,-564.35,0.00016712,2]
[423984651,1780535449000,-680.27,0.00016712,2]
[423984653,1780535449000,-688.21,0.00016712,2]
[423984652,1780535449000,-1130.97,0.00016712,2]
[423984642,1780535449000,-687.1,0.00016712,2]
[423984647,1780535449000,-835.73,0.00016712,2]
[423984644,1780535449000,-2158.51,0.00016712,2]
[423984646,1780535449000,-778.38,0.00016712,2]
[423984645,1780535449000,-500.0,0.00016712,2]
[423984643,1780535449000,-500.0,0.00016712,2]
[423984648,1780535449000,-500.0,0.00016712,2]
[423984656,1780535449000,-500.0,0.00016986,2]
[423984658,1780535449000,-500.0,0.00016986,2]
[423984654,1780535449000,-151.12506162,0.00016864,2]
[423984655,1780535449000,-500.0,0.00016986,2]
[423984657,1780535449000,-727.21,0.00016986,2]
[423984659,1780535449000,-548.67970134,0.00016986,2]
[423984660,1780535449000,-598.93,0.00016986,2]
[423984661,1780535449000,-1198.05,0.00016986,2]
[423984665,1780535449000,-2676.5,0.00016986,2]
[423984666,1780535449000,-1088.07,0.00016986,2]
[423984663,1780535449000,-926.41,0.00016986,2]
[423984664,1780535449000,-500.0,0.00016986,2]
[423984662,1780535449000,-500.0,0.00016986,2]
[423984706,1780535449000,-500.0,0.0001726,2]
[423984707,1780535449000,-636.04,0.0001726,2]
[423984698,1780535449000,-500.0,0.0001726,2]
[423984736,1780535449000,-727.21,0.00017534,2]
[423984738,1780535449000,-598.93,0.00017534,2]
[423984737,1780535449000,-500.0,0.00017534,2]
[423984745,1780535449000,-500.0,0.00017534,2]
[423984739,1780535449000,-1198.05,0.00017534,2]
[423984740,1780535449000,-500.0,0.00017534,2]
[423984741,1780535449000,-926.41,0.00017534,2]
[423984742,1780535449000,-500.0,0.00017534,2]
[423984746,1780535449000,-636.04,0.00017534,2]
[423984752,1780535449000,-555.17,0.00017534,2]
[423984751,1780535449000,-2470.54,0.00017534,2]
[423984753,1780535449000,-1627.14,0.00017534,2]
[423984754,1780535449000,-500.0,0.00017534,2]
[423984755,1780535449000,-1169.27,0.00017534,2]
[423984744,1780535449000,-1088.07,0.00017534,2]
[423984747,1780535449000,-710.59,0.00017534,2]
[423984749,1780535449000,-500.0,0.00017534,2]
[423984756,1780535449000,-500.0,0.00017534,2]
[423984748,1780535449000,-745.9,0.00017534,2]
[423984758,1780535449000,-687.1,0.00017534,2]
[423984757,1780535449000,-11303.85,0.00017534,2]
[423984759,1780535449000,-2158.51,0.00017534,2]
[423984761,1780535449000,-835.73,0.00017534,2]
[423984760,1780535449000,-778.38,0.00017534,2]
[423984763,1780535449000,-519.26,0.00017534,2]
[423984696,1780535449000,-500.0,0.0001726,2]
[423984764,1780535449000,-564.35,0.00017534,2]
[423984762,1780535449000,-449.22421625,0.00017534,2]
[423984765,1780535449000,-680.27,0.00017534,2]
[423984767,1780535449000,-2983.3230998,0.00017652,2]
[423984750,1780535449000,-541.8,0.00017534,2]
[423984743,1780535449000,-2676.5,0.00017534,2]
[423984766,1780535449000,-1130.97,0.00017534,2]
[423984733,1780535449000,-1204.7765318,0.00017308,2]
[423984735,1780535449000,-500.0,0.00017534,2]
[423984700,1780535449000,-1198.05,0.0001726,2]
[423984697,1780535449000,-727.21,0.0001726,2]
[423984701,1780535449000,-500.0,0.0001726,2]
[423984709,1780535449000,-745.9,0.0001726,2]
[423984708,1780535449000,-710.59,0.0001726,2]
[423984714,1780535449000,-1627.14,0.0001726,2]
[423984716,1780535449000,-1169.27,0.0001726,2]
[423984715,1780535449000,-500.0,0.0001726,2]
[423984718,1780535449000,-11303.85,0.0001726,2]
[423984712,1780535449000,-2470.54,0.0001726,2]
[423984713,1780535449000,-555.17,0.0001726,2]
[423984710,1780535449000,-500.0,0.0001726,2]
[423984711,1780535449000,-541.8,0.0001726,2]
[423984717,1780535449000,-500.0,0.0001726,2]
[423984699,1780535449000,-598.93,0.0001726,2]
[423984721,1780535449000,-2158.51,0.0001726,2]
[423984719,1780535449000,-585.67093704,0.0001726,2]
[423984723,1780535449000,-778.38,0.0001726,2]
[423984725,1780535449000,-500.0,0.0001726,2]
[423984724,1780535449000,-835.73,0.0001726,2]
[423984728,1780535449000,-680.27,0.0001726,2]
[423984726,1780535449000,-519.26,0.0001726,2]
[423984734,1780535449000,-500.0,0.00017534,2]
[423984722,1780535449000,-594.97535885,0.0001726,2]
[423984731,1780535449000,-1878.48243592,0.00017284,2]
[423984720,1780535449000,-687.1,0.0001726,2]
[423984730,1780535449000,-151.57721979,0.00017284,2]
[423984729,1780535449000,-1130.97,0.0001726,2]
[423984727,1780535449000,-564.35,0.0001726,2]
[423984732,1780535449000,-230.0,0.00017288,3]
[423984808,1780535450000,-183.58385684,0.00018036,2]
[423984806,1780535450000,-158.52001051,0.00018036,2]
[423984804,1780535450000,-1130.97,0.00017808,2]
[423984807,1780535450000,-685.75865721,0.00018036,2]
[423984802,1780535450000,-564.35,0.00017808,2]
[423984803,1780535450000,-680.27,0.00017808,2]
[423984801,1780535450000,-519.26,0.00017808,2]
[423984796,1780535450000,-11303.85,0.00017808,2]
[423984809,1780535450000,-749.55673552,0.00018036,2]
[423984794,1780535450000,-1169.27,0.00017808,2]
[423984805,1780535450000,-385.86961621,0.0001798,7]
[423984787,1780535450000,-745.9,0.00017808,2]
[423984815,1780535450000,-192.31353707,0.00018036,2]
[423984813,1780535450000,-341.74581266,0.00018036,2]
[423984814,1780535450000,-162.73549768,0.00018036,2]
[423984821,1780535450000,-200.72002094,0.00018036,2]
[423984820,1780535450000,-179.19207724,0.00018036,2]
[423984811,1780535450000,-197.54528224,0.00018036,2]
[423984817,1780535450000,-208.54538542,0.00018036,2]
[423984816,1780535450000,-217.18039769,0.00018036,2]
[423984818,1780535450000,-180.33918474,0.00018036,2]
[423984810,1780535450000,-167.93356598,0.00018036,2]
[423984824,1780535450000,-201.72000623,0.00018036,2]
[423984822,1780535450000,-168.24391282,0.00018036,2]
[423984789,1780535450000,-541.8,0.00017808,2]
[423984812,1780535450000,-152.70318795,0.00018036,2]
[423984793,1780535450000,-500.0,0.00017808,2]
[423984774,1780535450000,-500.0,0.00017808,2]
[423984791,1780535450000,-555.17,0.00017808,2]
[423984829,1780535450000,-156.94069421,0.00018036,2]
[423984772,1780535450000,-184.14409453,0.0001771,2]
[423984770,1780535450000,-239.67621367,0.00017683,2]
[423984769,1780535450000,-562.16755164,0.00017683,2]
[423984771,1780535450000,-191.80564126,0.0001771,2]
[423984773,1780535450000,-500.0,0.00017808,2]
[423984768,1780535450000,-457.17243814,0.00017683,2]
[423984775,1780535450000,-727.21,0.00017808,2]
[423984784,1780535450000,-500.0,0.00017808,2]
[423984785,1780535450000,-636.04,0.00017808,2]
[423984777,1780535450000,-598.93,0.00017808,2]
[423984776,1780535450000,-500.0,0.00017808,2]
[423984790,1780535450000,-2470.54,0.00017808,2]
[423984781,1780535450000,-500.0,0.00017808,2]
[423984786,1780535450000,-710.59,0.00017808,2]
[423984778,1780535450000,-1198.05,0.00017808,2]
[423984780,1780535450000,-926.41,0.00017808,2]
[423984783,1780535450000,-1088.07,0.00017808,2]
[423984782,1780535450000,-2676.5,0.00017808,2]
[423984788,1780535450000,-500.0,0.00017808,2]
[423984797,1780535450000,-687.1,0.00017808,2]
[423984798,1780535450000,-2158.51,0.00017808,2]
[423984800,1780535450000,-835.73,0.00017808,2]
[423984799,1780535450000,-778.38,0.00017808,2]
[423984792,1780535450000,-1627.14,0.00017808,2]
[423984795,1780535450000,-500.0,0.00017808,2]
[423984779,1780535450000,-500.0,0.00017808,2]
[423984827,1780535450000,-175.90742402,0.00018036,2]
[423984819,1780535450000,-183.28617536,0.00018036,2]
[423984831,1780535450000,-181.04826271,0.00018063,2]
[423984857,1780535450000,-462.94663513,0.00018082,2]
[423984858,1780535450000,-1169.27,0.00018082,2]
[423984862,1780535450000,-687.1,0.00018082,2]
[423984863,1780535450000,-2158.51,0.00018082,2]
[423984861,1780535450000,-2301.4518386,0.00018082,2]
[423984864,1780535450000,-778.38,0.00018082,2]
[423984865,1780535450000,-835.73,0.00018082,2]
[423984875,1780535450000,-500.0,0.00018125,2]
[423984877,1780535450000,-500.0,0.00018125,2]
[423984876,1780535450000,-500.0,0.00018125,2]
[423984878,1780535450000,-500.0,0.00018125,2]
[423984867,1780535450000,-564.35,0.00018082,2]
[423984853,1780535450000,-541.8,0.00018082,2]
[423984866,1780535450000,-519.26,0.00018082,2]
[423984870,1780535450000,-281.61533982,0.000181,2]
[423984869,1780535450000,-1130.97,0.00018082,2]
[423984874,1780535450000,-253.6539694,0.00018125,2]
[423984872,1780535450000,-10884.77407259,0.000181,2]
[423984873,1780535450000,-208.33333335,0.000181,2]
[423984879,1780535450000,-486.7194207,0.00018125,2]
[423984881,1780535450000,-160.0,0.00018135,2]
[423984884,1780535450000,-170.64140869,0.00018137,2]
[423984883,1780535450000,-192.89467475,0.00018137,2]
[423984882,1780535450000,-417.01201001,0.00018137,2]
[423984880,1780535450000,-160.0,0.00018135,2]
[423984826,1780535450000,-151.84367195,0.00018036,2]
[423984871,1780535450000,-184.45632696,0.000181,2]
[423984855,1780535450000,-555.17,0.00018082,2]
[423984868,1780535450000,-680.27,0.00018082,2]
[423984854,1780535450000,-2470.54,0.00018082,2]
[423984856,1780535450000,-1627.14,0.00018082,2]
[423984830,1780535450000,-157.70409318,0.00018063,2]
[423984828,1780535450000,-178.59966288,0.00018036,2]
[423984825,1780535450000,-479.35242733,0.00018036,2]
[423984832,1780535450000,-383.61128253,0.00018063,2]
[423984833,1780535450000,-151.57478557,0.00018063,2]
[423984823,1780535450000,-169.51211329,0.00018036,2]
[423984834,1780535450000,-368.28818906,0.00018063,2]
[423984847,1780535450000,-1088.07,0.00018082,2]
[423984848,1780535450000,-500.0,0.00018082,2]
[423984836,1780535450000,-1000.0,0.00018067,5]
[423984845,1780535450000,-500.0,0.00018082,2]
[423984837,1780535450000,-486.58058973,0.00018082,2]
[423984846,1780535450000,-2676.5,0.00018082,2]
[423984835,1780535450000,-169.17838721,0.00018063,2]
[423984843,1780535450000,-359.70359437,0.00018082,2]
[423984851,1780535450000,-745.9,0.00018082,2]
[423984860,1780535450000,-9002.3981614,0.00018082,2]
[423984859,1780535450000,-500.0,0.00018082,2]
[423984849,1780535450000,-636.04,0.00018082,2]
[423984850,1780535450000,-710.59,0.00018082,2]
[423984844,1780535450000,-926.41,0.00018082,2]
[423984852,1780535450000,-500.0,0.00018082,2]
[423984841,1780535450000,-598.93,0.00018082,2]
[423984839,1780535450000,-727.21,0.00018082,2]
[423984842,1780535450000,-1198.05,0.00018082,2]
[423984838,1780535450000,-500.0,0.00018082,2]
[423984840,1780535450000,-500.0,0.00018082,2]
[423984932,1780535451000,-2676.5,0.0001863,2]
[423984931,1780535451000,-500.0,0.0001863,2]
[423984927,1780535451000,-500.0,0.0001863,2]
[423984923,1780535451000,-824.0,0.00018445,2]
[423984928,1780535451000,-598.93,0.0001863,2]
[423984926,1780535451000,-727.21,0.0001863,2]
[423984924,1780535451000,-184.45632696,0.000185,2]
[423984922,1780535451000,-492.0,0.00018359,2]
[423984921,1780535451000,-1000.0,0.00018359,2]
[423984920,1780535451000,-680.27,0.00018356,2]
[423984930,1780535451000,-926.41,0.0001863,2]
[423984918,1780535451000,-564.35,0.00018356,2]
[423984925,1780535451000,-10884.77407259,0.000185,2]
[423984933,1780535451000,-1088.07,0.0001863,2]
[423984947,1780535451000,-835.73,0.0001863,2]
[423984935,1780535451000,-710.59,0.0001863,2]
[423984943,1780535451000,-11303.85,0.0001863,2]
[423984936,1780535451000,-745.9,0.0001863,2]
[423984940,1780535451000,-1627.14,0.0001863,2]
[423984938,1780535451000,-2470.54,0.0001863,2]
[423984939,1780535451000,-555.17,0.0001863,2]
[423984944,1780535451000,-687.1,0.0001863,2]
[423984937,1780535451000,-541.8,0.0001863,2]
[423984942,1780535451000,-500.0,0.0001863,2]
[423984941,1780535451000,-1169.27,0.0001863,2]
[423984946,1780535451000,-778.38,0.0001863,2]
[423984956,1780535451000,-192.207805,0.00018795,2]
[423984955,1780535451000,-196.343317,0.00018794,2]
[423984919,1780535451000,-1130.97,0.00018356,2]
[423984934,1780535451000,-636.04,0.0001863,2]
[423984929,1780535451000,-1198.05,0.0001863,2]
[423984890,1780535451000,-184.45632696,0.000183,2]
[423984912,1780535451000,-11303.85,0.00018356,2]
[423984885,1780535451000,-444.65084961,0.00018137,2]
[423984888,1780535451000,-159.85718925,0.00018184,2]
[423984886,1780535451000,-429.05421759,0.00018137,2]
[423984887,1780535451000,-184.36838297,0.00018137,2]
[423984957,1780535451000,-2206.0,0.00018799,2]
[423984889,1780535451000,-180.47921598,0.00018184,2]
[423984891,1780535451000,-10884.77407259,0.000183,2]
[423984893,1780535451000,-727.21,0.00018356,2]
[423984902,1780535451000,-636.04,0.00018356,2]
[423984903,1780535451000,-710.59,0.00018356,2]
[423984895,1780535451000,-598.93,0.00018356,2]
[423984896,1780535451000,-1198.05,0.00018356,2]
[423984894,1780535451000,-500.0,0.00018356,2]
[423984904,1780535451000,-745.9,0.00018356,2]
[423984892,1780535451000,-522.56029986,0.00018356,2]
[423984897,1780535451000,-926.41,0.00018356,2]
[423984901,1780535451000,-256.86202495,0.00018356,2]
[423984911,1780535451000,-500.0,0.00018356,2]
[423984913,1780535451000,-687.1,0.00018356,2]
[423984917,1780535451000,-519.26,0.00018356,2]
[423984914,1780535451000,-2158.51,0.00018356,2]
[423984906,1780535451000,-541.8,0.00018356,2]
[423984915,1780535451000,-778.38,0.00018356,2]
[423984910,1780535451000,-1169.27,0.00018356,2]
[423984916,1780535451000,-835.73,0.00018356,2]
[423984909,1780535451000,-1627.14,0.00018356,2]
[423984908,1780535451000,-555.17,0.00018356,2]
[423984905,1780535451000,-154.88,0.00018356,2]
[423984899,1780535451000,-2676.5,0.00018356,2]
[423984900,1780535451000,-1088.07,0.00018356,2]
[423984898,1780535451000,-500.0,0.00018356,2]
[423984907,1780535451000,-2470.54,0.00018356,2]
[423984948,1780535451000,-519.26,0.0001863,2]
[423984945,1780535451000,-2158.51,0.0001863,2]
[423984954,1780535451000,-824.0,0.0001872,2]
[423985000,1780535451000,-250.99751761,0.0001917,2]
[423984990,1780535451000,-151.0,0.00018966,2]
[423984992,1780535451000,-151.0,0.00018966,2]
[423984998,1780535451000,-10884.77407259,0.000191,2]
[423984989,1780535451000,-151.0,0.00018966,2]
[423984999,1780535451000,-200.0,0.00019169,2]
[423984988,1780535451000,-151.0,0.00018966,2]
[423984994,1780535451000,-153.0,0.00019,2]
[423984997,1780535451000,-201.886,0.00019022,2]
[423984993,1780535451000,-164.13373043,0.00018966,2]
[423984995,1780535451000,-444.0,0.00019022,2]
[423984996,1780535451000,-743.0,0.00019022,2]
[423985002,1780535451000,-803.19205636,0.0001917,2]
[423985009,1780535451000,-6074.13992625,0.0001917,2]
[423985008,1780535451000,-5019.95035227,0.0001917,2]
[423985010,1780535451000,-7228.72850727,0.0001917,2]
[423985011,1780535451000,-8483.71609534,0.0001917,2]
[423985019,1780535451000,-443.2831812,0.00019172,3]
[423984949,1780535451000,-564.35,0.0001863,2]
[423985018,1780535451000,-5383.21523831,0.0001917,2]
[423985016,1780535451000,-2746.53838689,0.0001917,2]
[423985015,1780535451000,-1757.78456761,0.0001917,2]
[423985005,1780535451000,-2459.77567261,0.0001917,2]
[423984991,1780535451000,-151.0,0.00018966,2]
[423985007,1780535451000,-4066.15978534,0.0001917,2]
[423985006,1780535451000,-3212.76822545,0.0001917,2]
[423985003,1780535451000,-1254.98758807,0.0001917,2]
[423985001,1780535451000,-451.7955317,0.0001917,2]
[423985014,1780535451000,-988.75381928,0.0001917,2]
[423985013,1780535451000,-549.30767738,0.0001917,2]
[423985012,1780535451000,-9839.10269045,0.0001917,2]
[423985004,1780535451000,-1807.18212682,0.0001917,2]
[423984987,1780535451000,-151.0,0.00018966,2]
[423985017,1780535451000,-3955.01527712,0.0001917,2]
[423984981,1780535451000,-778.38,0.00018904,2]
[423984979,1780535451000,-687.1,0.00018904,2]
[423984953,1780535451000,-10884.77407259,0.000187,2]
[423984950,1780535451000,-1130.97,0.0001863,2]
[423984951,1780535451000,-680.27,0.0001863,2]
[423984960,1780535451000,-10884.77407259,0.000189,2]
[423984958,1780535451000,-795.0,0.000188,2]
[423984962,1780535451000,-500.0,0.00018904,2]
[423984959,1780535451000,-184.45632696,0.000189,2]
[423984961,1780535451000,-727.21,0.00018904,2]
[423984963,1780535451000,-598.93,0.00018904,2]
[423984965,1780535451000,-926.41,0.00018904,2]
[423984964,1780535451000,-1198.05,0.00018904,2]
[423984968,1780535451000,-1088.07,0.00018904,2]
[423984967,1780535451000,-2676.5,0.00018904,2]
[423984969,1780535451000,-636.04,0.00018904,2]
[423984952,1780535451000,-184.45632696,0.000187,2]
[423984971,1780535451000,-745.9,0.00018904,2]
[423984976,1780535451000,-1169.27,0.00018904,2]
[423984977,1780535451000,-584.98262934,0.00018904,2]
[423984978,1780535451000,-11303.85,0.00018904,2]
[423984980,1780535451000,-2158.51,0.00018904,2]
[423984966,1780535451000,-500.0,0.00018904,2]
[423984973,1780535451000,-2470.54,0.00018904,2]
[423984985,1780535451000,-1130.97,0.00018904,2]
[423984986,1780535451000,-680.27,0.00018904,2]
[423984974,1780535451000,-555.17,0.00018904,2]
[423984984,1780535451000,-564.35,0.00018904,2]
[423984982,1780535451000,-835.73,0.00018904,2]
[423984983,1780535451000,-519.26,0.00018904,2]
[423984972,1780535451000,-541.8,0.00018904,2]
[423984970,1780535451000,-710.59,0.00018904,2]
[423984975,1780535451000,-1627.14,0.00018904,2]
[423985064,1780535452000,-151.0,0.00019178,2]
[423985066,1780535452000,-284.400177,0.00019178,2]
[423985056,1780535452000,-151.0,0.00019178,2]
[423985059,1780535452000,-297.680795,0.00019178,2]
[423985058,1780535452000,-151.0,0.00019178,2]
[423985053,1780535452000,-151.131491,0.00019178,2]
[423985051,1780535452000,-151.0,0.00019178,2]
[423985060,1780535452000,-151.754987,0.00019178,2]
[423985061,1780535452000,-151.894327,0.00019178,2]
[423985057,1780535452000,-210.372624,0.00019178,2]
[423985063,1780535452000,-151.0,0.00019178,2]
[423985054,1780535452000,-151.0,0.00019178,2]
[423985055,1780535452000,-151.0,0.00019178,2]
[423985070,1780535452000,-151.0,0.00019178,2]
[423985068,1780535452000,-151.000015,0.00019178,2]
[423985073,1780535452000,-151.0,0.00019178,2]
[423985075,1780535452000,-151.0,0.00019178,2]
[423985076,1780535452000,-151.0,0.00019178,2]
[423985071,1780535452000,-151.0,0.00019178,2]
[423985069,1780535452000,-151.0,0.00019178,2]
[423985072,1780535452000,-151.0,0.00019178,2]
[423985077,1780535452000,-151.0,0.00019178,2]
[423985074,1780535452000,-151.0,0.00019178,2]
[423985065,1780535452000,-151.0,0.00019178,2]
[423985079,1780535452000,-151.0,0.00019178,2]
[423985089,1780535452000,-367.643308,0.00019178,2]
[423985091,1780535452000,-193.222666,0.00019178,2]
[423985090,1780535452000,-367.643308,0.00019178,2]
[423985062,1780535452000,-151.0,0.00019178,2]
[423985067,1780535452000,-151.0,0.00019178,2]
[423985052,1780535452000,-152.208246,0.00019178,2]
[423985031,1780535452000,-710.59,0.00019178,2]
[423985050,1780535452000,-151.0,0.00019178,2]
[423985078,1780535452000,-151.0,0.00019178,2]
[423985021,1780535452000,-1773.13272479,0.00019172,3]
[423985022,1780535452000,-727.21,0.00019178,2]
[423985020,1780535452000,-802.86169938,0.00019172,3]
[423985023,1780535452000,-500.0,0.00019178,2]
[423985025,1780535452000,-1198.05,0.00019178,2]
[423985033,1780535452000,-541.8,0.00019178,2]
[423985035,1780535452000,-555.17,0.00019178,2]
[423985036,1780535452000,-1627.14,0.00019178,2]
[423985034,1780535452000,-2470.54,0.00019178,2]
[423985026,1780535452000,-926.41,0.00019178,2]
[423985024,1780535452000,-598.93,0.00019178,2]
[423985027,1780535452000,-500.0,0.00019178,2]
[423985028,1780535452000,-2676.5,0.00019178,2]
[423985029,1780535452000,-1088.07,0.00019178,2]
[423985030,1780535452000,-636.04,0.00019178,2]
[423985032,1780535452000,-745.9,0.00019178,2]
[423985037,1780535452000,-1169.27,0.00019178,2]
[423985042,1780535452000,-300.0,0.00019178,2]
[423985040,1780535452000,-2158.51,0.00019178,2]
[423985043,1780535452000,-835.73,0.00019178,2]
[423985041,1780535452000,-778.38,0.00019178,2]
[423985038,1780535452000,-11303.85,0.00019178,2]
[423985039,1780535452000,-687.1,0.00019178,2]
[423985044,1780535452000,-519.26,0.00019178,2]
[423985045,1780535452000,-564.35,0.00019178,2]
[423985048,1780535452000,-272.845262,0.00019178,2]
[423985049,1780535452000,-151.0,0.00019178,2]
[423985046,1780535452000,-1130.97,0.00019178,2]
[423985047,1780535452000,-680.27,0.00019178,2]
[423985080,1780535452000,-151.0,0.00019178,2]
[423985121,1780535452000,-193.222666,0.00019178,2]
[423985081,1780535452000,-272.645843,0.00019178,2]
[423985113,1780535452000,-367.643308,0.00019178,2]
[423985147,1780535452000,-835.73,0.00019452,2]
[423985132,1780535452000,-500.0,0.00019452,2]
[423985131,1780535452000,-926.41,0.00019452,2]
[423985123,1780535452000,-193.222666,0.00019178,2]
[423985133,1780535452000,-2676.5,0.00019452,2]
[423985120,1780535452000,-193.222666,0.00019178,2]
[423985122,1780535452000,-193.222666,0.00019178,2]
[423985124,1780535452000,-10884.77407259,0.000193,2]
[423985129,1780535452000,-598.93,0.00019452,2]
[423985130,1780535452000,-1198.05,0.00019452,2]
[423985125,1780535452000,-10884.77407259,0.000194,2]
[423985126,1780535452000,-386.298,0.00019404,2]
[423985127,1780535452000,-727.21,0.00019452,2]
[423985134,1780535452000,-1088.07,0.00019452,2]
[423985135,1780535452000,-636.04,0.00019452,2]
[423985136,1780535452000,-710.59,0.00019452,2]
[423985138,1780535452000,-541.8,0.00019452,2]
[423985137,1780535452000,-745.9,0.00019452,2]
[423985146,1780535452000,-778.38,0.00019452,2]
[423985141,1780535452000,-1627.14,0.00019452,2]
[423985143,1780535452000,-11303.85,0.00019452,2]
[423985142,1780535452000,-1169.27,0.00019452,2]
[423985140,1780535452000,-555.17,0.00019452,2]
[423985139,1780535452000,-2470.54,0.00019452,2]
[423985145,1780535452000,-2158.51,0.00019452,2]
[423985144,1780535452000,-687.1,0.00019452,2]
[423985148,1780535452000,-519.26,0.00019452,2]
[423985083,1780535452000,-151.0,0.00019178,2]
[423985112,1780535452000,-193.222666,0.00019178,2]
[423985116,1780535452000,-193.222666,0.00019178,2]
[423985128,1780535452000,-451.67862383,0.00019452,2]
[423985119,1780535452000,-193.222666,0.00019178,2]
[423985107,1780535452000,-367.643308,0.00019178,2]
[423985082,1780535452000,-151.0,0.00019178,2]
[423985086,1780535452000,-367.643308,0.00019178,2]
[423985088,1780535452000,-367.643308,0.00019178,2]
[423985087,1780535452000,-367.643308,0.00019178,2]
[423985084,1780535452000,-367.643308,0.00019178,2]
[423985085,1780535452000,-367.643308,0.00019178,2]
[423985092,1780535452000,-367.643308,0.00019178,2]
[423985098,1780535452000,-367.643308,0.00019178,2]
[423985094,1780535452000,-367.643308,0.00019178,2]
[423985096,1780535452000,-367.643308,0.00019178,2]
[423985097,1780535452000,-193.222666,0.00019178,2]
[423985099,1780535452000,-193.222666,0.00019178,2]
[423985102,1780535452000,-367.643308,0.00019178,2]
[423985093,1780535452000,-193.222666,0.00019178,2]
[423985095,1780535452000,-193.222666,0.00019178,2]
[423985100,1780535452000,-367.643308,0.00019178,2]
[423985115,1780535452000,-367.643308,0.00019178,2]